fUSD/lending_fUSD_20260628
["ID","MTS","AMOUNT","RATE_DAILY","PERIOD"]
[426601397,1782659446000,-500.0,0.0003,7]
[426601411,1782659446000,-500.0,0.0003,7]
[426601472,1782659446000,-65324.1687014,0.00030073,2]
[426601470,1782659446000,-201.677013,0.00030073,2]
[426601455,1782659446000,-12081.00138409,0.00030073,2]
[426601451,1782659446000,-154.00796842,0.0003007,7]
[426601474,1782659446000,-3489.0186067,0.00030073,2]
[426601484,1782659446000,-428.072156,0.0003009,7]
[426601487,1782659446000,-428.072156,0.0003009,7]
[426601489,1782659446000,-428.072156,0.0003009,7]
[426601491,1782659446000,-428.072156,0.0003009,7]
[426601476,1782659446000,-151.0,0.00030073,7]
[426601493,1782659446000,-2061.051868,0.0003009,7]
[426601480,1782659446000,-1427.45,0.00030074,2]
[426601482,1782659446000,-324666.36768671,0.0003009,2]
[426601497,1782659446000,-2061.051868,0.0003009,7]
[426601495,1782659446000,-2061.051868,0.0003009,7]
[426601502,1782659446000,-280.259016,0.0003009,7]
[426601499,1782659446000,-2061.051868,0.0003009,7]
[426601503,1782659446000,-280.259016,0.0003009,7]
[426601508,1782659446000,-686.412918,0.0003009,7]
[426601504,1782659446000,-280.259016,0.0003009,7]
[426601505,1782659446000,-280.259016,0.0003009,7]
[426601509,1782659446000,-686.412918,0.0003009,7]
[426601512,1782659446000,-686.412918,0.0003009,7]
[426601506,1782659446000,-686.412918,0.0003009,7]
[426601408,1782659446000,-500.0,0.0003,7]
[426601468,1782659446000,-55339.5937213,0.00030073,2]
[426601449,1782659446000,-518.73081926,0.00030069,2]
[426601478,1782659446000,-217.641381,0.00030073,7]
[426601453,1782659446000,-802.07792907,0.0003007,2]
[426601461,1782659446000,-3114.894607,0.00030073,2]
[426601406,1782659446000,-500.0,0.0003,7]
[426601404,1782659446000,-500.0,0.0003,7]
[426601413,1782659446000,-237.85,0.0003,7]
[426601402,1782659446000,-500.0,0.0003,7]
[426601399,1782659446000,-500.0,0.0003,7]
[426601417,1782659446000,-500.0,0.0003,7]
[426601419,1782659446000,-200.0,0.0003,2]
[426601421,1782659446000,-1685.63302615,0.0003,2]
[426601425,1782659446000,-200.0,0.0003,2]
[426601430,1782659446000,-200.0,0.0003,2]
[426601427,1782659446000,-200.0,0.0003,2]
[426601423,1782659446000,-200.0,0.0003,2]
[426601415,1782659446000,-500.0,0.0003,7]
[426601457,1782659446000,-62837.7345456,0.00030073,2]
[426601441,1782659446000,-225.0,0.00030011,2]
[426601436,1782659446000,-320.1786191,0.00030008,7]
[426601443,1782659446000,-260.0,0.00030016,15]
[426601438,1782659446000,-20940.26964229,0.0003001,2]
[426601434,1782659446000,-500.0,0.00030008,7]
[426601445,1782659446000,-1784.89,0.00030055,2]
[426601447,1782659446000,-1062.35259928,0.00030065,2]
[426601432,1782659446000,-500.0,0.00030008,7]
[426601459,1782659446000,-99239.0493241,0.00030073,2]
[426601466,1782659446000,-21101.5256048,0.00030073,2]
[426601464,1782659446000,-162.8025226,0.00030073,2]
[426601588,1782659447000,-500.0,0.00030136,2]
[426601572,1782659447000,-686.412908,0.000301,7]
[426601597,1782659447000,-500.0,0.00030136,2]
[426601595,1782659447000,-500.0,0.00030136,2]
[426601586,1782659447000,-500.0,0.00030136,2]
[426601576,1782659447000,-669.0,0.000301,5]
[426601580,1782659447000,-200.0,0.00030135,2]
[426601584,1782659447000,-500.0,0.00030136,2]
[426601582,1782659447000,-635.769599,0.00030136,2]
[426601574,1782659447000,-667.0,0.000301,5]
[426601599,1782659447000,-500.0,0.00030136,2]
[426601591,1782659447000,-500.0,0.00030136,2]
[426601601,1782659447000,-500.0,0.00030136,2]
[426601607,1782659447000,-500.0,0.00030136,2]
[426601593,1782659447000,-500.0,0.00030136,2]
[426601605,1782659447000,-500.0,0.00030136,2]
[426601611,1782659447000,-500.0,0.00030136,2]
[426601603,1782659447000,-500.0,0.00030136,2]
[426601616,1782659447000,-500.0,0.00030136,2]
[426601609,1782659447000,-500.0,0.00030136,2]
[426601624,1782659447000,-190.43950815,0.00030136,2]
[426601622,1782659447000,-500.0,0.00030136,2]
[426601620,1782659447000,-500.0,0.00030136,2]
[426601626,1782659447000,-414.77674001,0.00030136,2]
[426601618,1782659447000,-500.0,0.00030136,2]
[426601613,1782659447000,-500.0,0.00030136,2]
[426601578,1782659447000,-288.50143956,0.00030131,2]
[426601628,1782659447000,-165.910696,0.00030136,2]
[426601566,1782659447000,-686.412918,0.000301,7]
[426601520,1782659447000,-671.13214735,0.000301,15]
[426601514,1782659447000,-296.17414929,0.00030098,2]
[426601518,1782659447000,-2000.0,0.00030099,7]
[426601516,1782659447000,-590.96011488,0.00030099,2]
[426601524,1782659447000,-200.0,0.000301,2]
[426601531,1782659447000,-268435.71693946,0.000301,7]
[426601522,1782659447000,-940597.82524488,0.000301,7]
[426601528,1782659447000,-151.0,0.000301,7]
[426601533,1782659447000,-678.81376067,0.000301,2]
[426601537,1782659447000,-214.5,0.000301,2]
[426601541,1782659447000,-428.072156,0.000301,7]
[426601539,1782659447000,-187.47742,0.000301,3]
[426601535,1782659447000,-271.52550426,0.000301,2]
[426601544,1782659447000,-428.072156,0.000301,7]
[426601546,1782659447000,-428.072156,0.000301,7]
[426601552,1782659447000,-2061.051868,0.000301,7]
[426601550,1782659447000,-2061.051868,0.000301,7]
[426601548,1782659447000,-428.072146,0.000301,7]
[426601564,1782659447000,-280.259007,0.000301,7]
[426601554,1782659447000,-2061.051868,0.000301,7]
[426601558,1782659447000,-280.259016,0.000301,7]
[426601556,1782659447000,-2061.051878,0.000301,7]
[426601562,1782659447000,-280.259016,0.000301,7]
[426601568,1782659447000,-686.412918,0.000301,7]
[426601559,1782659447000,-280.259016,0.000301,7]
[426601570,1782659447000,-686.412918,0.000301,7]
[426601630,1782659447000,-168.03474628,0.00030136,7]
[426601526,1782659447000,-153.86009179,0.000301,7]
[426601636,1782659447000,-500.0,0.00030136,2]
[426601706,1782659447000,-248.86604401,0.00030137,30]
[426601704,1782659447000,-315.98275313,0.00030137,2]
[426601711,1782659447000,-156.34,0.0003014,4]
[426601713,1782659447000,-182.40645635,0.0003014,4]
[426601715,1782659447000,-182.4,0.0003014,4]
[426601717,1782659447000,-158.2029824,0.0003014,4]
[426601720,1782659447000,-158.2,0.0003014,4]
[426601722,1782659447000,-3380.6370854,0.00030141,2]
[426601724,1782659447000,-1123.1690982,0.00030143,2]
[426601726,1782659447000,-151.23394344,0.00030154,2]
[426601728,1782659447000,-151.23394344,0.00030154,2]
[426601731,1782659447000,-3222.31073283,0.00030154,2]
[426601708,1782659447000,-520.1,0.00030137,30]
[426601735,1782659447000,-3222.31073283,0.00030179,2]
[426601737,1782659447000,-150.42569424,0.00030224,5]
[426601739,1782659447000,-3222.31073283,0.0003024,2]
[426601748,1782659447000,-150.42569424,0.00030333,7]
[426601743,1782659447000,-3222.31073283,0.00030257,2]
[426601741,1782659447000,-44273.04217935,0.00030255,2]
[426601746,1782659447000,-187.47743,0.000303,3]
[426601757,1782659447000,-251.0,0.0003036,2]
[426601761,1782659447000,-3222.31073283,0.00030408,2]
[426601750,1782659447000,-255.02620182,0.0003036,2]
[426601754,1782659447000,-251.0,0.0003036,2]
[426601759,1782659447000,-200.0,0.00030401,2]
[426601640,1782659447000,-500.0,0.00030136,2]
[426601733,1782659447000,-150.42569424,0.00030159,4]
[426601702,1782659447000,-157.99137656,0.00030137,2]
[426601752,1782659447000,-251.0,0.0003036,2]
[426601693,1782659447000,-802.24,0.00030136,2]
[426601699,1782659447000,-239.13002388,0.00030137,2]
[426601642,1782659447000,-500.0,0.00030136,2]
[426601638,1782659447000,-500.0,0.00030136,2]
[426601632,1782659447000,-500.0,0.00030136,2]
[426601647,1782659447000,-500.0,0.00030136,2]
[426601664,1782659447000,-500.0,0.00030136,2]
[426601650,1782659447000,-500.0,0.00030136,2]
[426601644,1782659447000,-500.0,0.00030136,2]
[426601659,1782659447000,-500.0,0.00030136,2]
[426601653,1782659447000,-500.0,0.00030136,2]
[426601656,1782659447000,-500.0,0.00030136,2]
[426601668,1782659447000,-500.0,0.00030136,2]
[426601666,1782659447000,-500.0,0.00030136,2]
[426601634,1782659447000,-500.0,0.00030136,2]
[426601670,1782659447000,-500.0,0.00030136,2]
[426601673,1782659447000,-500.0,0.00030136,2]
[426601687,1782659447000,-802.24,0.00030136,2]
[426601685,1782659447000,-802.24,0.00030136,2]
[426601697,1782659447000,-150.42569492,0.00030137,2]
[426601683,1782659447000,-802.24,0.00030136,2]
[426601689,1782659447000,-802.24,0.00030136,2]
[426601695,1782659447000,-330.1,0.00030137,2]
[426601681,1782659447000,-802.24,0.00030136,2]
[426601677,1782659447000,-500.0,0.00030136,2]
[426601674,1782659447000,-500.0,0.00030136,2]
[426601679,1782659447000,-285.63625787,0.00030136,2]
[426601691,1782659447000,-802.24,0.00030136,2]
[426601815,1782659448000,-3222.31073283,0.00030653,2]
[426601821,1782659448000,-3222.31073283,0.00030669,2]
[426601850,1782659448000,-207.0,0.0003068,30]
[426601823,1782659448000,-500.0,0.0003067,2]
[426601825,1782659448000,-153.0,0.00030671,30]
[426601837,1782659448000,-158.0,0.00030671,30]
[426601839,1782659448000,-487.0,0.00030671,30]
[426601852,1782659448000,-197.0,0.0003068,30]
[426601856,1782659448000,-150.42569424,0.00030682,10]
[426601854,1782659448000,-840.0,0.0003068,30]
[426601841,1782659448000,-499.0,0.00030671,30]
[426601858,1782659448000,-200.0,0.00030688,2]
[426601848,1782659448000,-278.0,0.00030671,30]
[426601846,1782659448000,-155.0,0.00030671,30]
[426601843,1782659448000,-200.0,0.00030671,30]
[426601865,1782659448000,-251.0,0.0003069,2]
[426601867,1782659448000,-251.0,0.0003069,2]
[426601869,1782659448000,-251.0,0.0003069,2]
[426601871,1782659448000,-251.0,0.0003069,2]
[426601863,1782659448000,-251.0,0.0003069,2]
[426601811,1782659448000,-3222.31073283,0.00030643,2]
[426601873,1782659448000,-251.0,0.0003069,2]
[426601861,1782659448000,-251.0,0.0003069,2]
[426601812,1782659448000,-3222.31073283,0.0003065,2]
[426601796,1782659448000,-5000.0,0.00030557,2]
[426601819,1782659448000,-3222.31073283,0.00030665,2]
[426601882,1782659448000,-200.0,0.00030705,2]
[426601763,1782659448000,-249.64611127,0.00030415,2]
[426601765,1782659448000,-249.64611127,0.00030415,2]
[426601768,1782659448000,-3222.31073283,0.00030416,2]
[426601770,1782659448000,-3222.31073283,0.00030434,2]
[426601774,1782659448000,-520.1,0.00030441,30]
[426601772,1782659448000,-171.56301258,0.00030437,30]
[426601778,1782659448000,-824.0,0.00030496,2]
[426601780,1782659448000,-800.0,0.000305,2]
[426601785,1782659448000,-171.56301258,0.000305,2]
[426601783,1782659448000,-857.81506291,0.000305,2]
[426601787,1782659448000,-800.0,0.000305,2]
[426601776,1782659448000,-150.42569424,0.00030486,9]
[426601792,1782659448000,-238.02255953,0.0003052,2]
[426601794,1782659448000,-9956.9263916,0.00030557,2]
[426601791,1782659448000,-405.0,0.00030501,2]
[426601789,1782659448000,-187.47742,0.000305,3]
[426601798,1782659448000,-1546.26,0.00030561,30]
[426601804,1782659448000,-3222.31073283,0.0003059,2]
[426601802,1782659448000,-1431.72538811,0.0003057,2]
[426601800,1782659448000,-721.77,0.00030561,30]
[426601806,1782659448000,-549.07,0.000306,7]
[426601808,1782659448000,-278.7304211,0.00030621,2]
[426601817,1782659448000,-271.24621388,0.00030663,4]
[426601875,1782659448000,-251.0,0.0003069,2]
[426601884,1782659448000,-154.0,0.00030723,30]
[426601877,1782659448000,-905.58,0.000307,7]
[426601939,1782659448000,-800.0,0.00031,2]
[426601941,1782659448000,-1278.47298055,0.00031,2]
[426601943,1782659448000,-200.0,0.00031,10]
[426601951,1782659448000,-251.0,0.0003102,2]
[426601953,1782659448000,-251.0,0.0003102,2]
[426601947,1782659448000,-200.0,0.00031012,2]
[426601945,1782659448000,-1094.76482519,0.00031,2]
[426601949,1782659448000,-251.0,0.0003102,2]
[426601955,1782659448000,-251.0,0.0003102,2]
[426601957,1782659448000,-251.0,0.0003102,2]
[426601959,1782659448000,-251.0,0.0003102,2]
[426601963,1782659448000,-1212.59170271,0.00031046,2]
[426601974,1782659448000,-187.47743,0.000311,3]
[426601967,1782659448000,-341.63,0.00031058,30]
[426601969,1782659448000,-3222.31073283,0.00031059,2]
[426601965,1782659448000,-520.1,0.0003105,30]
[426601976,1782659448000,-300.0,0.000311,10]
[426601972,1782659448000,-3222.31073283,0.00031088,2]
[426601978,1782659448000,-3222.31073283,0.00031119,2]
[426601980,1782659448000,-3222.31073283,0.00031197,2]
[426601982,1782659448000,-150.42569424,0.00031205,14]
[426601984,1782659448000,-3222.31073283,0.00031209,2]
[426601986,1782659448000,-3222.31073283,0.00031246,2]
[426601937,1782659448000,-1000.0,0.00031,7]
[426601935,1782659448000,-40103.1419285,0.00031,2]
[426601961,1782659448000,-251.0,0.0003102,2]
[426601931,1782659448000,-3222.31073283,0.00030982,2]
[426601932,1782659448000,-800.0,0.00031,2]
[426601886,1782659448000,-213.0,0.00030723,30]
[426601879,1782659448000,-187.47743,0.000307,3]
[426601890,1782659448000,-500.0,0.00030757,2]
[426601888,1782659448000,-520.1,0.00030746,30]
[426601902,1782659448000,-500.0,0.00030757,2]
[426601893,1782659448000,-500.0,0.00030757,2]
[426601904,1782659448000,-381.91579154,0.00030757,2]
[426601895,1782659448000,-500.0,0.00030757,2]
[426601908,1782659448000,-3222.31073283,0.00030771,2]
[426601897,1782659448000,-500.0,0.00030757,2]
[426601910,1782659448000,-187.47742,0.000309,3]
[426601899,1782659448000,-500.0,0.00030757,2]
[426601906,1782659448000,-150.0,0.00030757,2]
[426601928,1782659448000,-1305.53457044,0.00030954,2]
[426601913,1782659448000,-200.0,0.000309,4]
[426601922,1782659448000,-1348.01336811,0.00030954,2]
[426601929,1782659448000,-500.0,0.0003097,2]
[426601924,1782659448000,-1221.58328629,0.00030954,2]
[426601930,1782659448000,-700.0,0.0003097,2]
[426601917,1782659448000,-225.50697561,0.00030936,2]
[426601926,1782659448000,-1362.72514487,0.00030954,2]
[426601915,1782659448000,-150.42569424,0.00030922,12]
[426601919,1782659448000,-161.80806516,0.00030936,2]
[426602073,1782659449000,-988.27386799,0.000317,2]
[426602052,1782659449000,-197.0,0.0003168,30]
[426602058,1782659449000,-3222.31073283,0.00031683,2]
[426602054,1782659449000,-840.0,0.0003168,30]
[426602069,1782659449000,-988.33096626,0.000317,2]
[426602060,1782659449000,-223.7906773,0.00031695,2]
[426602063,1782659449000,-3222.31073283,0.00031695,2]
[426602056,1782659449000,-3222.31073283,0.00031682,2]
[426602075,1782659449000,-988.27386797,0.000317,2]
[426602071,1782659449000,-988.33096626,0.000317,2]
[426602067,1782659449000,-988.33096627,0.000317,2]
[426602065,1782659449000,-564.53256539,0.000317,2]
[426602105,1782659449000,-1214.11725632,0.00031961,2]
[426602091,1782659449000,-213.0,0.00031723,30]
[426602077,1782659449000,-988.27386797,0.000317,2]
[426602083,1782659449000,-596.91552804,0.000317,2]
[426602095,1782659449000,-3222.31073283,0.00031836,2]
[426602099,1782659449000,-3222.31073283,0.00031897,2]
[426602087,1782659449000,-608.0,0.00031721,7]
[426602079,1782659449000,-596.91552806,0.000317,2]
[426602085,1782659449000,-1236.0,0.00031716,7]
[426602093,1782659449000,-236.43,0.00031756,3]
[426602097,1782659449000,-3222.31073283,0.00031875,2]
[426602081,1782659449000,-596.91552804,0.000317,2]
[426602048,1782659449000,-278.0,0.00031671,30]
[426602089,1782659449000,-154.0,0.00031723,30]
[426602050,1782659449000,-207.0,0.0003168,30]
[426602000,1782659449000,-251.0,0.0003135,2]
[426602037,1782659449000,-158.0,0.00031671,30]
[426601988,1782659449000,-3222.31073283,0.0003127,2]
[426601992,1782659449000,-200.0,0.00031322,2]
[426601990,1782659449000,-549.07,0.000313,7]
[426602103,1782659449000,-150.42569424,0.00031903,17]
[426601994,1782659449000,-251.0,0.0003135,2]
[426601998,1782659449000,-251.0,0.0003135,2]
[426601996,1782659449000,-251.0,0.0003135,2]
[426602002,1782659449000,-251.0,0.0003135,2]
[426602004,1782659449000,-251.0,0.0003135,2]
[426602007,1782659449000,-520.1,0.00031355,30]
[426602009,1782659449000,-497.68,0.0003136,10]
[426602013,1782659449000,-2000.0,0.00031429,7]
[426602011,1782659449000,-3222.31073283,0.0003142,2]
[426602024,1782659449000,-3222.31073283,0.00031514,2]
[426602020,1782659449000,-800.0,0.000315,2]
[426602026,1782659449000,-158.68170636,0.0003152,7]
[426602015,1782659449000,-3222.31073283,0.0003149,2]
[426602022,1782659449000,-800.0,0.000315,2]
[426602017,1782659449000,-300.0,0.000315,28]
[426602028,1782659449000,-150.42569424,0.00031533,15]
[426602029,1782659449000,-2956.0,0.00031628,10]
[426602032,1782659449000,-157.060907,0.00031633,2]
[426602034,1782659449000,-520.1,0.00031659,30]
[426602046,1782659449000,-155.0,0.00031671,30]
[426602041,1782659449000,-499.0,0.00031671,30]
[426602039,1782659449000,-487.0,0.00031671,30]
[426602036,1782659449000,-153.0,0.00031671,30]
[426602044,1782659449000,-200.0,0.00031671,30]
[426602107,1782659449000,-233.82396634,0.00031962,7]
[426602111,1782659449000,-3222.31073283,0.00031983,2]
[426602121,1782659449000,-24736.0,0.00032012,2]
[426602179,1782659449000,-549.07,0.000327,7]
[426602181,1782659449000,-154.0,0.00032723,30]
[426602182,1782659449000,-213.0,0.00032723,30]
[426602184,1782659449000,-631.18717291,0.00032732,7]
[426602186,1782659449000,-218.98702663,0.00032767,14]
[426602197,1782659449000,-265.528,0.00032869,7]
[426602200,1782659449000,-330.1,0.00032877,2]
[426602195,1782659449000,-150.0,0.00032869,7]
[426602191,1782659449000,-200.0,0.000328,11]
[426602189,1782659449000,-150.42569424,0.00032776,21]
[426602193,1782659449000,-250.64,0.0003283,3]
[426602204,1782659449000,-151.0,0.00032877,7]
[426602177,1782659449000,-197.0,0.0003268,30]
[426602208,1782659449000,-884.21,0.00032877,30]
[426602206,1782659449000,-208.009683,0.00032877,7]
[426602202,1782659449000,-151.0,0.00032877,7]
[426602210,1782659449000,-750.0,0.00032877,2]
[426602212,1782659449000,-520.1,0.00032877,30]
[426602217,1782659449000,-280.42692761,0.000329,2]
[426602219,1782659449000,-164.78204812,0.000329,6]
[426602223,1782659449000,-500.0,0.00032949,7]
[426602225,1782659449000,-500.0,0.00032949,7]
[426602221,1782659449000,-222.87997659,0.000329,2]
[426602227,1782659449000,-284.3330151,0.00032949,7]
[426602230,1782659449000,-190.57264995,0.00032956,2]
[426602109,1782659449000,-520.1,0.00031963,30]
[426602215,1782659449000,-200.0,0.000329,12]
[426602175,1782659449000,-207.0,0.0003268,30]
[426602178,1782659449000,-840.0,0.0003268,30]
[426602173,1782659449000,-278.0,0.00032671,30]
[426602123,1782659449000,-192.33429304,0.00032131,7]
[426602113,1782659449000,-800.0,0.00032,5]
[426602115,1782659449000,-800.0,0.00032,5]
[426602117,1782659449000,-549.07,0.00032,7]
[426602119,1782659449000,-2021.46,0.00032,32]
[426602125,1782659449000,-218.98702663,0.0003219,14]
[426602127,1782659449000,-905.58,0.000322,7]
[426602129,1782659449000,-2030.22,0.00032232,7]
[426602137,1782659449000,-17228.73,0.00032232,7]
[426602135,1782659449000,-465.08,0.00032232,7]
[426602139,1782659449000,-520.1,0.00032268,30]
[426602169,1782659449000,-200.0,0.00032671,30]
[426602131,1782659449000,-1078.83,0.00032232,7]
[426602133,1782659449000,-266.17,0.00032232,7]
[426602141,1782659449000,-150.42569424,0.00032318,19]
[426602148,1782659449000,-800.0,0.000325,5]
[426602171,1782659449000,-155.0,0.00032671,30]
[426602161,1782659449000,-153.0,0.00032671,30]
[426602146,1782659449000,-453.0,0.00032499,10]
[426602159,1782659449000,-350.0,0.00032659,2]
[426602167,1782659449000,-499.0,0.00032671,30]
[426602165,1782659449000,-487.0,0.00032671,30]
[426602157,1782659449000,-199.66,0.00032585,120]
[426602155,1782659449000,-520.1,0.00032572,30]
[426602153,1782659449000,-158.68170636,0.0003252,7]
[426602151,1782659449000,-800.0,0.000325,5]
[426602144,1782659449000,-500.0,0.00032348,2]
[426602163,1782659449000,-158.0,0.00032671,30]
[426602263,1782659450000,-13342.47754838,0.00033,2]
[426602234,1782659450000,-2523286.37615449,0.00033,30]
[426602232,1782659450000,-700.0,0.0003297,2]
[426602256,1782659450000,-3568.03,0.00027397,10]
[426602258,1782659450000,-209603.82693131,0.00033,30]
[426602260,1782659450000,-113693.57697623,0.00033,30]
[426602354,1782659450000,-2239.03403237,0.00033,2]
[426602277,1782659450000,-207966.01228227,0.00033,2]
[426602347,1782659450000,-11800.79248196,0.00033,2]
[426602344,1782659450000,-802.24,0.00030136,2]
[426602349,1782659450000,-9023.09933998,0.00033,2]
[426602351,1782659450000,-1429.0397393,0.00033,2]
[426602275,1782659450000,-479.8230108,0.00033,2]
[426602442,1782659451000,-248.72,0.00033226,2]
[426602444,1782659451000,-248.74,0.00033226,2]
[426602447,1782659451000,-248.73,0.00033226,2]
[426602449,1782659451000,-185.3,0.00033226,2]
[426602451,1782659451000,-248.72,0.00033226,2]
[426602458,1782659451000,-248.72,0.00033226,2]
[426602454,1782659451000,-187.11,0.00033226,2]
[426602456,1782659451000,-185.26,0.00033226,2]
[426602460,1782659451000,-644.53,0.00033226,2]
[426602462,1782659451000,-248.73,0.00033226,2]
[426602464,1782659451000,-185.27,0.00033226,2]
[426602436,1782659451000,-248.72,0.00033226,2]
[426602470,1782659451000,-248.72,0.00033227,2]
[426602468,1782659451000,-185.26,0.00033226,2]
[426602474,1782659451000,-248.72,0.00033227,2]
[426602493,1782659451000,-185.26,0.00033228,2]
[426602478,1782659451000,-248.74,0.00033227,2]
[426602476,1782659451000,-185.26,0.00033227,2]
[426602472,1782659451000,-573.82,0.00033227,2]
[426602480,1782659451000,-327.12,0.00033227,2]
[426602466,1782659451000,-185.26,0.00033226,2]
[426602438,1782659451000,-185.26,0.00033226,2]
[426602430,1782659451000,-520.1,0.00033181,30]
[426602440,1782659451000,-248.72,0.00033226,2]
[426602383,1782659451000,-802.24,0.00030136,2]
[426602378,1782659451000,-639.9779722,0.00030136,2]
[426602381,1782659451000,-802.24,0.00030136,2]
[426602385,1782659451000,-802.24,0.00030136,2]
[426602376,1782659451000,-162.2620278,0.00030136,2]
[426602374,1782659451000,-151.0,0.00016438,2]
[426602389,1782659451000,-112.45948704,0.00030136,2]
[426602387,1782659451000,-802.24,0.00030136,2]
[426602402,1782659451000,-689.78051296,0.00030136,2]
[426602428,1782659451000,-3941.0,0.00033149,10]
[426602404,1782659451000,-569.71596693,0.00033,2]
[426602413,1782659451000,-2144.68410278,0.00033,2]
[426602420,1782659451000,-800.0,0.00033,5]
[426602418,1782659451000,-265225.47214716,0.00033,2]
[426602416,1782659451000,-802.24,0.00030136,2]
[426602422,1782659451000,-800.0,0.00033,5]
[426602424,1782659451000,-200.0,0.00033089,7]
[426602432,1782659451000,-453.0,0.00033184,10]
[426602434,1782659451000,-644.53,0.00033226,2]
[426602426,1782659451000,-200.0,0.00033089,7]
[426602411,1782659451000,-802.24,0.00030136,2]
[426602491,1782659451000,-481.76,0.00033227,2]
[426602499,1782659451000,-248.72,0.00033228,2]
[426602489,1782659451000,-644.54,0.00033227,2]
[426602553,1782659451000,-800.0,0.00033657,14]
[426602558,1782659451000,-800.0,0.00033657,14]
[426602555,1782659451000,-800.0,0.00033657,14]
[426602561,1782659451000,-800.0,0.00033657,14]
[426602546,1782659451000,-1000.0,0.00033631,2]
[426602542,1782659451000,-1391.33,0.00033631,2]
[426602539,1782659451000,-250.6129007,0.00033522,2]
[426602544,1782659451000,-1000.0,0.00033631,2]
[426602548,1782659451000,-1029.02,0.00033631,2]
[426602557,1782659451000,-800.0,0.00033657,14]
[426602562,1782659451000,-800.0,0.00033657,14]
[426602579,1782659451000,-800.0,0.00033657,14]
[426602564,1782659451000,-800.0,0.00033657,14]
[426602570,1782659451000,-800.0,0.00033657,14]
[426602577,1782659451000,-800.0,0.00033657,14]
[426602575,1782659451000,-800.0,0.00033657,14]
[426602573,1782659451000,-800.0,0.00033657,14]
[426602583,1782659451000,-800.0,0.00033657,14]
[426602581,1782659451000,-800.0,0.00033657,14]
[426602495,1782659451000,-185.26,0.00033228,2]
[426602566,1782659451000,-800.0,0.00033657,14]
[426602551,1782659451000,-711.91169191,0.00033653,14]
[426602568,1782659451000,-800.0,0.00033657,14]
[426602536,1782659451000,-800.0,0.000335,5]
[426602486,1782659451000,-185.26,0.00033227,2]
[426602540,1782659451000,-1000.0,0.00033631,2]
[426602482,1782659451000,-185.26,0.00033227,2]
[426602484,1782659451000,-644.53,0.00033227,2]
[426602497,1782659451000,-248.72,0.00033228,2]
[426602501,1782659451000,-644.59,0.00033228,2]
[426602507,1782659451000,-248.72,0.00033228,2]
[426602517,1782659451000,-150.42569424,0.00033277,22]
[426602505,1782659451000,-185.26,0.00033228,2]
[426602515,1782659451000,-811.0,0.00033246,7]
[426602503,1782659451000,-248.72,0.00033228,2]
[426602511,1782659451000,-644.53,0.00033228,2]
[426602513,1782659451000,-1648.0,0.00033241,7]
[426602519,1782659451000,-218.98702663,0.00033344,14]
[426602521,1782659451000,-198.25963667,0.00033385,120]
[426602523,1782659451000,-520.1,0.00033486,30]
[426602525,1782659451000,-152.0,0.000335,3]
[426602534,1782659451000,-362.888,0.000335,20]
[426602509,1782659451000,-185.28,0.00033228,2]
[426602537,1782659451000,-800.0,0.000335,5]
[426602538,1782659451000,-754.3220942,0.0003352,2]